fUSD/lending_fUSD_20260127
["ID","MTS","AMOUNT","RATE_DAILY","PERIOD"]
[403814311,1769551846751,-617.39879905,0.00016438,2]
[403814312,1769551846759,-617.39879905,0.00016438,2]
[403814313,1769551846768,-617.39879905,0.00016438,2]
[403814314,1769551846778,-617.39879905,0.00016438,2]
[403814315,1769551846787,-617.39879905,0.00016438,2]
[403814316,1769551846796,-617.39879905,0.00016438,2]
[403814317,1769551846805,-617.39879905,0.00016438,2]
[403814318,1769551846814,-617.39879905,0.00016438,2]
[403814319,1769551846823,-617.39879905,0.00016438,2]
[403814320,1769551846832,-617.39879905,0.00016438,2]
[403814321,1769551846841,-617.39879905,0.00016438,2]
[403814322,1769551846850,-617.39879905,0.00016438,2]
[403814323,1769551846859,-617.39879905,0.00016438,2]
[403814324,1769551846867,-617.39879905,0.00016438,2]
[403814325,1769551846877,-617.39879905,0.00016438,2]
[403814326,1769551846886,-617.39879905,0.00016438,2]
[403814327,1769551846895,-617.39879905,0.00016438,2]
[403814328,1769551846974,-617.39879905,0.00016438,2]
[403814329,1769551846983,-617.39879905,0.00016438,2]
[403814330,1769551846992,-617.39879905,0.00016438,2]
[403814331,1769551847001,-617.39879905,0.00016438,2]
[403814332,1769551847010,-617.39879905,0.00016438,2]
[403814333,1769551847019,-617.39879905,0.00016438,2]
[403814334,1769551847028,-617.39879905,0.00016438,2]
[403814335,1769551847037,-617.39879905,0.00016438,2]
[403814336,1769551847047,-617.39879905,0.00016438,2]
[403814337,1769551847055,-617.39879905,0.00016438,2]
[403814338,1769551847064,-617.39879905,0.00016438,2]
[403814339,1769551847073,-617.39879905,0.00016438,2]
[403814340,1769551847083,-617.39879905,0.00016438,2]
[403814341,1769551847092,-617.39879905,0.00016438,2]
[403814342,1769551847102,-617.39879905,0.00016438,2]
[403814343,1769551847111,-617.39879905,0.00016438,2]
[403814344,1769551847120,-617.39879905,0.00016438,2]
[403814345,1769551847129,-617.39879905,0.00016438,2]
[403814346,1769551847139,-617.39879905,0.00016438,2]
[403814347,1769551847148,-617.39879905,0.00016438,2]
[403814348,1769551847157,-617.39879905,0.00016438,2]
[403814349,1769551847166,-617.39879905,0.00016438,2]
[403814350,1769551847175,-617.39879905,0.00016438,2]
[403814351,1769551847184,-617.39879905,0.00016438,2]
[403814352,1769551847194,-617.39879905,0.00016438,2]
[403814353,1769551847203,-617.39879905,0.00016438,2]
[403814354,1769551847212,-617.39879905,0.00016438,2]
[403814355,1769551847222,-617.39879905,0.00016438,2]
[403814356,1769551847231,-617.39879905,0.00016438,2]
[403814357,1769551847241,-617.39879905,0.00016438,2]
[403814358,1769551847251,-617.39879905,0.00016438,2]
[403814359,1769551847260,-617.39879905,0.00016438,2]
[403814360,1769551847269,-617.39879905,0.00016438,2]
[403814361,1769551847278,-617.39879905,0.00016438,2]
[403814362,1769551847287,-617.39879905,0.00016438,2]
[403814363,1769551847297,-617.39879905,0.00016438,2]
[403814364,1769551847306,-614.31180504,0.00016438,2]
[403814365,1769551847315,-614.31180504,0.00016438,2]
[403814366,1769551847328,-614.31180504,0.00016438,2]
[403814367,1769551847337,-614.31180504,0.00016438,2]
[403814368,1769551847346,-614.31180504,0.00016438,2]
[403814369,1769551847355,-614.31180504,0.00016438,2]
[403814370,1769551847365,-614.31180504,0.00016438,2]
[403814371,1769551847374,-614.31180504,0.00016438,2]
[403814372,1769551847383,-614.31180504,0.00016438,2]
[403814373,1769551847393,-614.31180504,0.00016438,2]
[403814374,1769551847402,-614.31180504,0.00016438,2]
[403814375,1769551847413,-614.31180504,0.00016438,2]
[403814376,1769551847423,-614.31180504,0.00016438,2]
[403814377,1769551847432,-614.31180504,0.00016438,2]
[403814378,1769551847441,-614.31180504,0.00016438,2]
[403814379,1769551847450,-614.31180504,0.00016438,2]
[403814380,1769551847459,-614.31180504,0.00016438,2]
[403814381,1769551847468,-614.31180504,0.00016438,2]
[403814382,1769551847477,-614.31180504,0.00016438,2]
[403814383,1769551847486,-614.31180502,0.00016438,2]
[403814384,1769551847495,-166.25,0.00016449,2]
[403814385,1769551847504,-500.0,0.00016466,2]
[403814386,1769551847513,-265.49389154,0.00016466,2]
[403814387,1769551847523,-500.0,0.00016466,2]
[403814388,1769551847531,-500.0,0.00016466,2]
[403814389,1769551847540,-500.0,0.00016466,2]
[403814390,1769551847549,-500.0,0.00016466,2]
[403814391,1769551847558,-500.0,0.00016466,2]
[403814392,1769551847568,-779.0,0.00016466,2]
[403814393,1769551847577,-444.0,0.00016466,2]
[403814394,1769551847586,-500.0,0.00016521,2]
[403814395,1769551847595,-500.0,0.00016521,2]
[403814396,1769551847604,-500.0,0.00016521,2]
[403814397,1769551847613,-500.0,0.00016521,2]
[403814398,1769551847622,-500.0,0.00016521,2]
[403814399,1769551847632,-500.0,0.00016521,2]
[403814400,1769551847641,-779.0,0.00016521,2]
[403814401,1769551847651,-444.0,0.00016521,2]
[403814402,1769551847659,-1242.68,0.00016544,2]
[403814403,1769551847668,-500.0,0.00016575,2]
[403814404,1769551847677,-500.0,0.00016575,2]
[403814405,1769551847687,-500.0,0.00016575,2]
[403814406,1769551847696,-500.0,0.00016575,2]
[403814407,1769551847705,-500.0,0.00016575,2]
[403814408,1769551847714,-500.0,0.00016575,2]
[403814409,1769551847723,-779.0,0.00016575,2]
[403814410,1769551847731,-444.0,0.00016575,2]
[403814411,1769551847740,-166.67,0.00016579,2]
[403814412,1769551847750,-940.08,0.00016579,2]
[403814413,1769551847759,-500.0,0.0001663,2]
[403814414,1769551847768,-500.0,0.0001663,2]
[403814415,1769551847777,-500.0,0.0001663,2]
[403814416,1769551847788,-500.0,0.0001663,2]
[403814417,1769551847796,-500.0,0.0001663,2]
[403814418,1769551847805,-500.0,0.0001663,2]
[403814419,1769551847814,-779.0,0.0001663,2]
[403814420,1769551847823,-444.0,0.0001663,2]
[403814421,1769551847832,-500.0,0.00016685,2]
[403814422,1769551847841,-500.0,0.00016685,2]
[403814423,1769551847851,-500.0,0.00016685,2]
[403814424,1769551847860,-500.0,0.00016685,2]
[403814425,1769551847869,-500.0,0.00016685,2]
[403814426,1769551847878,-500.0,0.00016685,2]
[403814427,1769551847886,-779.0,0.00016685,2]
[403814428,1769551847895,-444.0,0.00016685,2]
[403814429,1769551847905,-500.0,0.0001674,2]
[403814430,1769551847914,-500.0,0.0001674,2]
[403814431,1769551847923,-500.0,0.0001674,2]
[403814432,1769551847932,-500.0,0.0001674,2]
[403814433,1769551847942,-500.0,0.0001674,2]
[403814434,1769551847951,-363.51122534,0.0001674,2]
[403814435,1769551847959,-779.0,0.0001674,2]
[403814436,1769551847969,-444.0,0.0001674,2]
[403814437,1769551847978,-527.26751797,0.00016795,2]
[403814438,1769551847988,-500.0,0.00016795,2]
[403814439,1769551847997,-500.0,0.00016795,2]
[403814440,1769551848007,-393.00645443,0.00016795,2]
[403814441,1769551848016,-500.0,0.00016795,2]
[403814442,1769551848025,-779.0,0.00016795,2]
[403814443,1769551848034,-444.0,0.00016795,2]
[403814444,1769551848044,-500.0,0.00016849,2]
[403814445,1769551848053,-500.0,0.00016849,2]
[403814446,1769551848063,-482.8923735,0.00016849,2]
[403814447,1769551848071,-779.0,0.00016849,2]
[403814448,1769551848080,-444.0,0.00016849,2]
[403814449,1769551848089,-940.08,0.00016853,2]
[403814450,1769551848098,-500.0,0.00016904,2]
[403814451,1769551848108,-500.0,0.00016904,2]
[403814452,1769551848117,-779.0,0.00016904,2]
[403814453,1769551848126,-444.0,0.00016904,2]
[403814454,1769551848135,-561.30412969,0.00016921,2]
[403814455,1769551848144,-500.0,0.00016921,2]
[403814456,1769551848153,-1000.44164958,0.00016921,2]
[403814457,1769551848162,-500.0,0.00016921,2]
[403814458,1769551848172,-687.78066829,0.00016921,2]
[403814459,1769551848181,-297.22,0.00016944,7]
[403814460,1769551848190,-500.0,0.00016959,2]
[403814461,1769551848200,-500.0,0.00016959,2]
[403814462,1769551848209,-779.0,0.00016959,2]
[403814463,1769551848218,-444.0,0.00016959,2]
[403814464,1769551848228,-250.0,0.00017,2]
[403814465,1769551848237,-500.0,0.00017014,2]
[403814466,1769551848247,-500.0,0.00017014,2]
[403814467,1769551848256,-779.0,0.00017014,2]
[403814468,1769551848265,-563.39557034,0.00017069,2]
[403814469,1769551848274,-451.92574143,0.00017069,2]
[403814470,1769551848283,-779.0,0.00017069,2]
[403814471,1769551848293,-779.0,0.00017123,2]
[403814472,1769551848301,-940.08,0.00017127,2]
[403814473,1769551848310,-779.0,0.00017178,2]
[403814474,1769551848320,-433.0,0.00017184,2]
[403814475,1769551848329,-212.33238102,0.00017196,2]
[403814476,1769551848341,-380.0,0.00017249,2]
[403814477,1769551848351,-166.25,0.00017272,2]
[403814478,1769551848360,-1242.68,0.00017296,2]
[403814479,1769551848369,-380.0,0.00017297,2]
[403814480,1769551848380,-288.33164901,0.000173,2]
[403814481,1769551848390,-380.0,0.00017364,2]
[403814482,1769551848399,-380.0,0.00017365,2]
[403814483,1769551848411,-166.67,0.000174,2]
[403814484,1769551848420,-940.08,0.00017401,2]
[403814485,1769551848429,-250.0,0.00017468,2]
[403814486,1769551848437,-1264.73042674,0.00017475,2]
[403814487,1769551848447,-3337.64360617,0.00017475,2]
[403814488,1769551848455,-5887.99894481,0.00017475,2]
[403814489,1769551848465,-380.0,0.00017485,2]
[403814490,1769551848475,-12580.65175272,0.0001756,2]
[403814491,1769551848484,-10816.30317455,0.00017561,2]
[403814492,1769551848493,-5700.0,0.000176,6]
[403814493,1769551848503,-150.0,0.00017644,2]
[403814494,1769551848512,-500.0,0.00017644,2]
[403814495,1769551848520,-500.0,0.00017644,2]
[403814496,1769551848529,-150.0,0.00017644,2]
[403814497,1769551848542,-500.0,0.00017644,2]
[403814498,1769551848551,-500.0,0.00017644,2]
[403814499,1769551848560,-940.08,0.00017675,2]
[403814500,1769551848569,-500.0,0.00017699,2]
[403814501,1769551848578,-500.0,0.00017699,2]
[403814502,1769551848588,-150.0,0.00017699,2]
[403814503,1769551848598,-500.0,0.00017699,2]
[403814504,1769551848608,-500.0,0.00017699,2]
[403814505,1769551848618,-8500.0,0.000177,6]
[403814506,1769551848627,-1000.0,0.00017732,2]
[403814507,1769551848636,-290.0,0.0001774,2]
[403814508,1769551848645,-500.0,0.00017754,2]
[403814509,1769551848654,-173.31089418,0.00017754,2]
[403814510,1769551848663,-150.0,0.00017754,2]
[403814511,1769551848672,-500.0,0.00017754,2]
[403814512,1769551848681,-500.0,0.00017754,2]
[403814513,1769551848690,-1241.77,0.00017756,2]
[403814514,1769551848699,-150.0000687,0.00017764,2]
[403814515,1769551848708,-490.08113567,0.000178,2]
[403814516,1769551848719,-11400.0,0.000178,6]
[403814517,1769551848728,-150.0,0.00017806,2]
[403814518,1769551848736,-500.0,0.00017808,2]
[403814519,1769551848746,-500.0,0.00017808,2]
[403814520,1769551848755,-251.98965372,0.00017808,2]
[403814521,1769551848764,-500.0,0.00017808,2]
[403814522,1769551848774,-500.0,0.00017808,2]
[403814523,1769551848784,-380.0,0.00017816,2]
[403814524,1769551848793,-500.0,0.00017863,2]
[403814525,1769551848803,-500.0,0.00017863,2]
[403814526,1769551848812,-500.0,0.00017863,2]
[403814527,1769551848821,-500.0,0.00017863,2]
[403814528,1769551848830,-380.0,0.0001789,2]
[403814529,1769551848840,-10000.0,0.000179,2]
[403814530,1769551848850,-14200.0,0.000179,6]
[403814531,1769551848859,-4780.77157911,0.000179,2]
[403814532,1769551848868,-195.58150189,0.000179,3]
[403814533,1769551848878,-575.9921483,0.000179,2]
[403814534,1769551848886,-216.8114186,0.000179,2]
[403814535,1769551848896,-569.07051019,0.000179,2]
[403814536,1769551848905,-375.19870368,0.00017918,2]
[403814537,1769551848914,-500.0,0.00017918,2]
[403814538,1769551848923,-500.0,0.00017918,2]
[403814539,1769551848932,-500.0,0.00017918,2]
[403814540,1769551848942,-940.14565862,0.00017949,2]
[403814541,1769551848951,-2351.0,0.00017955,2]
[403814542,1769551848960,-150.0,0.00017972,2]
[403814543,1769551848970,-500.0,0.00017973,2]
[403814544,1769551848979,-500.0,0.00017973,2]
[403814545,1769551848988,-500.0,0.00017973,2]
[403814546,1769551848998,-413.81245521,0.0001799,2]
[403814547,1769551849007,-413.81245521,0.0001799,2]
[403814548,1769551849016,-446.075,0.00017994,2]
[403814549,1769551849026,-151.0,0.00017997,2]
[403814550,1769551849035,-151.0,0.00017997,2]
[403814551,1769551849044,-151.0,0.00017997,2]
[403814552,1769551849053,-150.0,0.00017999,2]
[403814553,1769551849063,-150.0,0.00017999,2]
[403814554,1769551849072,-150.0,0.00017999,2]
[403814555,1769551849082,-150.0,0.00017999,2]
[403814556,1769551849091,-157.25260051,0.00017999,2]
[403814557,1769551849101,-300.0,0.00017999,2]
[403814558,1769551849111,-666.0,0.00017999,2]
[403814559,1769551849120,-500.0,0.00017999,2]
[403814560,1769551849129,-500.0,0.00017999,2]
[403814561,1769551849139,-500.0,0.00017999,2]
[403814562,1769551849148,-500.0,0.00017999,2]
[403814563,1769551849157,-500.0,0.00017999,2]
[403814564,1769551849166,-500.0,0.00017999,2]
[403814565,1769551849176,-500.0,0.00017999,2]
[403814566,1769551849185,-500.0,0.00017999,2]
[403814567,1769551849194,-500.0,0.00017999,2]
[403814568,1769551849205,-500.0,0.00017999,2]
[403814569,1769551849214,-500.0,0.00017999,2]
[403814570,1769551849223,-500.0,0.00017999,2]
[403814571,1769551849232,-348.04142777,0.00017999,2]
[403814572,1769551849241,-500.0,0.00017999,2]
[403814573,1769551849250,-500.0,0.00017999,2]
[403814574,1769551849260,-500.0,0.00017999,2]
[403814575,1769551849269,-212.45,0.00017999,2]
[403814576,1769551849279,-2942653.64505619,0.00018,2]
[403814577,1769551849288,-1191.05553705,0.00018,2]
[403814578,1769551849297,-200.0,0.00018,2]
[403814579,1769551849306,-517.0,0.00018,2]
[403814580,1769551849315,-500.0,0.00018028,2]
[403814581,1769551849328,-500.0,0.00018028,2]
[403814582,1769551849337,-500.0,0.00018028,2]
[403814583,1769551849346,-1242.68,0.00018048,2]
[403814584,1769551849356,-500.0,0.00018082,2]
[403814585,1769551849366,-500.0,0.00018082,2]
[403814586,1769551849375,-500.0,0.00018082,2]
[403814587,1769551849385,-166.25,0.00018094,2]
[403814588,1769551849396,-500.0,0.00018137,2]
[403814589,1769551849406,-500.0,0.00018137,2]
[403814590,1769551849416,-500.0,0.00018137,2]
[403814591,1769551849425,-200.0,0.0001818,2]
[403814592,1769551849434,-500.0,0.00018192,2]
[403814593,1769551849443,-500.0,0.00018192,2]
[403814594,1769551849453,-500.0,0.00018192,2]
[403814595,1769551849462,-1000.0,0.00018231,2]
[403814596,1769551849471,-500.0,0.00018247,2]
[403814597,1769551849480,-500.0,0.00018247,2]
[403814598,1769551849489,-511.21504498,0.00018247,2]
[403814599,1769551849499,-500.0,0.00018302,2]
[403814600,1769551849508,-500.0,0.00018302,2]
[403814601,1769551849517,-500.0,0.00018356,2]
[403814602,1769551849526,-500.0,0.00018356,2]
[403814603,1769551849535,-394.52625559,0.00018362,2]
[403814604,1769551849544,-500.0,0.00018411,2]
[403814605,1769551849553,-500.0,0.00018411,2]
[403814606,1769551849562,-166.66,0.00018437,2]
[403814607,1769551849571,-247.51653588,0.00018466,2]
[403814608,1769551849580,-597.32249886,0.00018466,2]
[403814609,1769551849589,-736.0,0.0001849,2]
[403814610,1769551849599,-1000.0,0.00018677,2]
[403814611,1769551849608,-1000.0,0.00018846,2]
[403814612,1769551849617,-1266.0,0.00018896,2]
[403814613,1769551849626,-1266.0,0.00018896,2]
[403814614,1769551849635,-1266.0,0.00018896,2]
[403814615,1769551849644,-1266.0,0.00018896,2]
[403814616,1769551849653,-1266.0,0.00018896,2]
[403814617,1769551849663,-1266.0,0.00018896,2]
[403814618,1769551849672,-1266.0,0.00018896,2]
[403814619,1769551849681,-204.000725,0.000189,2]
[403814620,1769551849690,-166.25,0.00018917,2]
[403814621,1769551849699,-166.66,0.00018974,2]
[403814622,1769551849708,-564.86618726,0.00019,2]
[403814623,1769551849717,-300.0,0.00019,2]
[403814624,1769551849726,-445.0,0.00019178,4]
[403814625,1769551849735,-8808.09428335,0.00019475,2]
[403814626,1769551849743,-1000.0,0.000197,2]
[403814627,1769551849752,-291.57,0.00019701,2]
[403814628,1769551849761,-1241.77,0.00019729,2]
[403814629,1769551849770,-166.25,0.00019739,2]
[403814630,1769551849779,-3292.0,0.00019751,2]
[403814631,1769551849789,-1252.0,0.00019884,2]
[403814632,1769551849798,-500.0,0.000202,2]
[403814633,1769551849807,-12580.65175272,0.00020278,2]
[403814634,1769551849816,-10816.30317455,0.00020279,2]
[403814635,1769551849826,-150.0000687,0.00020533,11]
[403814636,1769551849835,-1000.0,0.00020544,2]
[403814637,1769551849843,-166.25,0.00020561,2]
[403814638,1769551849853,-163.55,0.00020715,14]
[403814639,1769551849862,-300.0,0.00020999,2]
[403814640,1769551849871,-666.0,0.00020999,2]
[403814641,1769551849880,-20000.0,0.00021,2]
[403814642,1769551849889,-806.78575807,0.00021,2]
[403814643,1769551849898,-1193.54868513,0.00021,2]
[403814644,1769551849908,-197.0051344,0.00021,2]
[403814645,1769551849917,-151.0,0.00021,2]
[403814646,1769551849927,-151.0,0.00021,2]
[403814647,1769551849936,-12518.54,0.00021068,2]
[403814648,1769551849945,-158.41888255,0.0002127,2]
[403814649,1769551849954,-6379.11,0.0002137,2]
[403814650,1769551849963,-166.25,0.00021384,2]
[403814651,1769551849972,-705.0,0.00021398,2]
[403814652,1769551849981,-300.0,0.00021499,2]
[403814653,1769551849990,-57556.37730629,0.000215,2]
[403814654,1769551849999,-222.22195639,0.000215,2]
[403814655,1769551850008,-1104.0,0.000217,2]
[403814656,1769551850017,-1241.77,0.00021701,2]
[403814657,1769551850025,-1149.0,0.00021726,2]
[403814658,1769551850035,-517.0,0.00021875,5]
[403814659,1769551850044,-289.5,0.0002189,2]
[403814660,1769551850053,-163.33176766,0.0002189,2]
[403814661,1769551850062,-300.0,0.00021917,2]
[403814662,1769551850071,-300.0,0.00021917,3]
[403814663,1769551850080,-295.94693484,0.00021917,4]
[403814664,1769551850089,-500.0,0.00021917,2]
[403814665,1769551850098,-500.0,0.00021917,2]
[403814666,1769551850107,-500.0,0.00021917,2]
[403814667,1769551850116,-500.0,0.00021917,2]
[403814668,1769551850126,-500.0,0.00021917,2]
[403814669,1769551850135,-500.0,0.00021917,2]
[403814670,1769551850144,-500.0,0.00021917,2]
[403814671,1769551850154,-500.0,0.00021917,2]
[403814672,1769551850163,-500.0,0.00021917,2]
[403814673,1769551850172,-500.0,0.00021917,2]
[403814674,1769551850181,-500.0,0.00021917,2]
[403814675,1769551850190,-500.0,0.00021917,2]
[403814676,1769551850199,-379.37242675,0.00021917,2]
[403814677,1769551850208,-5000.0,0.00021918,2]
[403814678,1769551850218,-155.0,0.00021918,2]
[403814679,1769551850227,-155.0,0.00021918,2]
[403814680,1769551850235,-155.0,0.00021918,2]
[403814681,1769551850245,-155.0,0.00021918,2]
[403814682,1769551850254,-155.0,0.00021918,2]
[403814683,1769551850263,-155.0,0.00021918,2]
[403814684,1769551850273,-155.0,0.00021918,2]
[403814685,1769551850283,-155.0,0.00021918,2]
[403814686,1769551850292,-155.0,0.00021918,2]
[403814687,1769551850302,-155.0,0.00021918,2]
[403814688,1769551850311,-155.0,0.00021918,2]
[403814689,1769551850321,-155.0,0.00021918,2]
[403814690,1769551850331,-155.0,0.00021918,2]
[403814691,1769551850343,-155.0,0.00021918,2]
[403814692,1769551850351,-155.0,0.00021918,2]
[403814693,1769551850360,-155.0,0.00021918,2]
[403814694,1769551850369,-155.0,0.00021918,2]
[403814695,1769551850380,-155.0,0.00021918,2]
[403814696,1769551850390,-150.0,0.00021918,2]
[403814697,1769551850399,-150.0,0.00021918,2]
[403814698,1769551850409,-500.0,0.00021973,2]
[403814699,1769551850418,-500.0,0.00021973,2]
[403814700,1769551850427,-500.0,0.00021973,2]
[403814701,1769551850436,-500.0,0.00021973,2]
[403814702,1769551850445,-500.0,0.00021973,2]
[403814703,1769551850453,-500.0,0.00021973,2]
[403814704,1769551850462,-500.0,0.00021973,2]
[403814705,1769551850471,-500.0,0.00021973,2]
[403814706,1769551850481,-500.0,0.00021973,2]
[403814707,1769551850490,-500.0,0.00021973,2]
[403814708,1769551850499,-500.0,0.00021973,2]
[403814709,1769551850508,-500.0,0.00021973,2]
[403814710,1769551850518,-500.0,0.00021973,2]
[403814711,1769551850527,-500.0,0.00021973,2]
[403814712,1769551850535,-194.05743557,0.00021973,2]
[403814713,1769551850544,-500.0,0.00021973,2]
[403814714,1769551850553,-500.67368382,0.00021973,2]
[403814715,1769551850562,-500.0,0.00021973,2]
[403814716,1769551850571,-210.105,0.00021973,2]
[403814717,1769551850579,-500.0,0.00021973,2]
[403814718,1769551850589,-500.0,0.00021973,2]
[403814719,1769551850599,-500.0,0.00021973,2]
[403814720,1769551850608,-500.0,0.00021973,2]
[403814721,1769551850617,-500.0,0.00021973,2]
[403814722,1769551850626,-500.0,0.00021973,2]
[403814723,1769551850635,-500.0,0.00021973,2]
[403814724,1769551850644,-500.0,0.00021973,2]
[403814725,1769551850654,-500.0,0.00021973,2]
[403814726,1769551850664,-150.0,0.00021973,2]
[403814727,1769551850672,-773.9,0.00022,7]
[403814728,1769551850683,-76354.48717043,0.00022,4]
[403814729,1769551850691,-168.08,0.00022,2]
[403814730,1769551850701,-490.08113564,0.0002205,2]
[403814731,1769551850710,-291.57,0.00022114,2]
[403814732,1769551850720,-166.25,0.00022206,2]
[403814733,1769551850729,-1454.39,0.00022227,2]
[403814734,1769551850739,-1000.0,0.00022412,2]
[403814735,1769551850748,-1000.0,0.00022521,2]
[403814736,1769551850757,-1000.0,0.00022521,2]
[403814737,1769551850766,-1000.0,0.00022521,2]
[403814738,1769551850775,-500.0,0.00022658,2]
[403814739,1769551850784,-3477.0,0.00022691,2]
[403814740,1769551850794,-1408.0,0.00022691,2]
[403814741,1769551850804,-1333.0,0.00022691,2]
[403814742,1769551850813,-184.0,0.00022691,2]
[403814743,1769551850823,-1269.0,0.00022691,2]
[403814744,1769551850832,-916.0,0.00022691,2]
[403814745,1769551850841,-1204.0,0.00022691,2]
[403814746,1769551850851,-4831.0,0.00022691,2]
[403814747,1769551850991,-6570.0,0.00022691,2]
[403814748,1769551851000,-2442.0,0.00022691,2]
[403814749,1769551851010,-163.2700125,0.00022973,2]
[403814750,1769551851019,-150.0,0.00022973,2]
[403814751,1769551851028,-164.31135582,0.00022973,2]
[403814752,1769551851037,-12580.65175272,0.00022995,2]
[403814753,1769551851047,-10816.30317455,0.00022996,2]
[403814754,1769551851056,-288.1974106,0.00023068,2]
[403814755,1769551851066,-1500.0,0.00023068,2]
[403814756,1769551851075,-500.0,0.00023068,2]
[403814757,1769551851084,-150.0000687,0.00023303,20]
[403814758,1769551851094,-2000.0,0.000234,2]
[403814759,1769551851103,-1000.0,0.000234,2]
[403814760,1769551851113,-57504.0,0.000235,2]
[403814761,1769551851122,-250.0,0.00023521,2]
[403814762,1769551851132,-628.71369645,0.00023616,2]
[403814763,1769551851142,-1241.77,0.00023674,2]
[403814764,1769551851151,-212.33238099,0.00023721,2]
[403814765,1769551851161,-350.0,0.00024068,2]
[403814766,1769551851171,-322.6107,0.00024196,2]
[403814767,1769551851180,-250.0,0.00024196,2]
[403814768,1769551851189,-500.0,0.00024196,2]
[403814769,1769551851199,-250.0,0.00024196,2]
[403814770,1769551851208,-500.0,0.00024196,2]
[403814771,1769551851217,-500.0,0.00024196,2]
[403814772,1769551851227,-250.0,0.00024196,2]
[403814773,1769551851236,-500.0,0.00024196,2]
[403814774,1769551851246,-250.0,0.00024196,2]
[403814775,1769551851256,-331.08016816,0.00024196,2]
[403814776,1769551851265,-500.0,0.00024196,2]
[403814777,1769551851274,-500.0,0.00024196,2]
[403814778,1769551851285,-500.0,0.00024196,2]
[403814779,1769551851294,-578.20924308,0.00024196,2]
[403814780,1769551851303,-500.0,0.00024196,2]
[403814781,1769551851313,-500.0,0.00024196,2]
[403814782,1769551851325,-500.0,0.00024196,2]
[403814783,1769551851334,-500.0,0.00024196,2]
[403814784,1769551851343,-500.0,0.00024196,2]
[403814785,1769551851352,-500.0,0.00024196,2]
[403814786,1769551851362,-500.0,0.00024196,2]
[403814787,1769551851372,-500.0,0.00024196,2]
[403814788,1769551851380,-500.0,0.00024196,2]
[403814789,1769551851389,-500.0,0.00024196,2]
[403814790,1769551851400,-500.0,0.00024196,2]
[403814791,1769551851410,-500.0,0.00024196,2]
[403814792,1769551851419,-174.61919141,0.00024196,2]
[403814793,1769551851429,-250.0,0.00024196,2]
[403814794,1769551851438,-250.0,0.00024196,2]
[403814795,1769551851447,-250.0,0.00024196,2]
[403814796,1769551851456,-250.0,0.00024196,2]
[403814797,1769551851466,-250.0,0.00024196,2]
[403814798,1769551851475,-250.0,0.00024196,2]
[403814799,1769551851484,-209.40437684,0.00024196,2]
[403814800,1769551851494,-250.0,0.00024196,2]
[403814801,1769551851503,-262.30252765,0.00024196,2]
[403814802,1769551851514,-217.15233878,0.00024251,2]
[403814803,1769551851522,-225.18697532,0.00024306,2]
[403814804,1769551851532,-3751.16,0.00024354,2]
[403814805,1769551851540,-233.51889341,0.00024361,2]
[403814806,1769551851549,-242.15909246,0.00024416,2]
[403814807,1769551851559,-251.11897888,0.00024471,2]
[403814808,1769551851568,-5532.0,0.000245,3]
[403814809,1769551851577,-260.4103811,0.00024526,2]
[403814810,1769551851586,-270.0455652,0.00024581,2]